fUSD/lending_fUSD_20251206
["ID","MTS","AMOUNT","RATE_DAILY","PERIOD"]
[396535580,1765042251472,-500.0,0.00016712,2]
[396535581,1765042251481,-151.0,0.00016712,2]
[396535582,1765042251491,-500.0,0.00016712,2]
[396535583,1765042251501,-151.0,0.00016712,2]
[396535584,1765042251511,-717.36,0.00016712,2]
[396535585,1765042251521,-500.0,0.00016712,2]
[396535586,1765042251531,-3365.9,0.00016712,2]
[396535587,1765042251540,-151.0,0.00016712,2]
[396535588,1765042251551,-151.0,0.00016712,2]
[396535589,1765042251562,-500.0,0.00016712,2]
[396535590,1765042251572,-190.134864,0.00016712,2]
[396535591,1765042251582,-793.78,0.00016712,2]
[396535592,1765042251593,-2048.09,0.00016712,2]
[396535593,1765042251603,-500.0,0.00016712,2]
[396535594,1765042251613,-1316.37,0.00016712,2]
[396535595,1765042251623,-1333.22,0.00016712,2]
[396535596,1765042251632,-151.0,0.00016712,2]
[396535597,1765042251642,-151.0,0.00016712,2]
[396535598,1765042251652,-500.0,0.00016712,2]
[396535599,1765042251662,-635.56,0.00016712,2]
[396535600,1765042251672,-731.85,0.00016712,2]
[396535601,1765042251683,-500.0,0.00016712,2]
[396535602,1765042251693,-151.0,0.00016712,2]
[396535603,1765042251703,-560.91,0.00016712,2]
[396535604,1765042251713,-877.34,0.00016712,2]
[396535605,1765042251725,-151.0,0.00016712,2]
[396535606,1765042251734,-151.0,0.00016712,2]
[396535607,1765042251744,-563.03,0.00016712,2]
[396535608,1765042251754,-550.42777936,0.00016712,2]
[396535609,1765042252027,-500.0,0.00016712,2]
[396535610,1765042252081,-151.0,0.00016712,2]
[396535611,1765042252091,-151.0,0.00016712,2]
[396535612,1765042252100,-151.0,0.00016712,2]
[396535613,1765042252110,-151.0,0.00016712,2]
[396535614,1765042252120,-637.12,0.00016712,2]
[396535615,1765042252129,-892.24,0.00016712,2]
[396535616,1765042252139,-151.0,0.00016712,2]
[396535617,1765042252148,-151.0,0.00016712,2]
[396535618,1765042252158,-500.0,0.00016712,2]
[396535619,1765042252168,-500.0,0.00016712,2]
[396535620,1765042252177,-10796.98,0.00016712,2]
[396535621,1765042252186,-566.84,0.00016712,2]
[396535622,1765042252196,-500.0,0.00016712,2]
[396535623,1765042252205,-500.0,0.00016712,2]
[396535624,1765042252214,-2141.18,0.00016712,2]
[396535625,1765042252223,-500.0,0.00016712,2]
[396535626,1765042252233,-817.01,0.00016712,2]
[396535627,1765042252242,-500.0,0.00016712,2]
[396535628,1765042252252,-2815.17,0.00016712,2]
[396535629,1765042252261,-500.0,0.00016712,2]
[396535630,1765042252270,-500.0,0.00016712,2]
[396535631,1765042252280,-3062.08,0.00016712,2]
[396535632,1765042252289,-500.0,0.00016712,2]
[396535633,1765042252298,-151.0,0.00016712,2]
[396535634,1765042252308,-151.0,0.00016712,2]
[396535635,1765042252318,-151.0,0.00016712,2]
[396535636,1765042252330,-151.0,0.00016712,2]
[396535637,1765042252339,-528.33,0.00016712,2]
[396535638,1765042252349,-280.192959,0.00016712,2]
[396535639,1765042252360,-1285.01,0.00016712,2]
[396535640,1765042252371,-500.0,0.00016712,2]
[396535641,1765042252380,-500.0,0.00016712,2]
[396535642,1765042252390,-152.74448,0.00016712,2]
[396535643,1765042252400,-500.0,0.00016712,2]
[396535644,1765042252412,-661.74,0.00016712,2]
[396535645,1765042252421,-8586.92,0.00016712,2]
[396535646,1765042252431,-238.946657,0.00016712,2]
[396535647,1765042252440,-531.09,0.00016712,2]
[396535648,1765042252450,-238.946657,0.00016712,2]
[396535649,1765042252460,-1131.45,0.00016712,2]
[396535650,1765042252470,-151.0,0.00016712,2]
[396535651,1765042252479,-3115.54,0.00016712,2]
[396535652,1765042252489,-151.0,0.00016712,2]
[396535653,1765042252498,-500.0,0.00016712,2]
[396535654,1765042252507,-238.946657,0.00016712,2]
[396535655,1765042252517,-238.946657,0.00016712,2]
[396535656,1765042252526,-269.4924397,0.00016712,2]
[396535657,1765042252536,-151.0,0.00016712,2]
[396535658,1765042252545,-151.0,0.00016712,2]
[396535659,1765042252554,-151.0,0.00016712,2]
[396535660,1765042252564,-10798.85,0.00016712,2]
[396535661,1765042252573,-238.946657,0.00016712,2]
[396535662,1765042252583,-151.0,0.00016712,2]
[396535663,1765042252592,-238.946657,0.00016712,2]
[396535664,1765042252602,-258.272032,0.00016712,2]
[396535665,1765042252611,-3130.53,0.00016712,2]
[396535666,1765042252621,-616.81,0.00016712,2]
[396535667,1765042252631,-238.946657,0.00016712,2]
[396535668,1765042252641,-1017.97,0.00016712,2]
[396535669,1765042252650,-238.946657,0.00016712,2]
[396535670,1765042252660,-2941.11,0.00016712,2]
[396535671,1765042252670,-151.0,0.00016712,2]
[396535672,1765042252680,-3091.91,0.00016712,2]
[396535673,1765042252691,-151.0,0.00016712,2]
[396535674,1765042252700,-151.0,0.00016712,2]
[396535675,1765042252709,-2821.44,0.00016712,2]
[396535676,1765042252719,-151.0,0.00016712,2]
[396535677,1765042252729,-151.0,0.00016712,2]
[396535678,1765042252739,-2657.97,0.00016712,2]
[396535679,1765042252748,-151.0,0.00016712,2]
[396535680,1765042252758,-151.0,0.00016712,2]
[396535681,1765042252767,-500.0,0.00016712,2]
[396535682,1765042252778,-2486.5,0.00016712,2]
[396535683,1765042252787,-500.0,0.00016712,2]
[396535684,1765042252796,-151.0,0.00016712,2]
[396535685,1765042252806,-151.0,0.00016712,2]
[396535686,1765042252816,-153.670569,0.00016712,2]
[396535687,1765042252825,-151.0,0.00016712,2]
[396535688,1765042252835,-153.670569,0.00016712,2]
[396535689,1765042252844,-151.0,0.00016712,2]
[396535690,1765042252853,-151.0,0.00016712,2]
[396535691,1765042252863,-151.0,0.00016712,2]
[396535692,1765042252873,-153.670569,0.00016712,2]
[396535693,1765042252882,-4241.55,0.00016712,2]
[396535694,1765042252892,-153.670569,0.00016712,2]
[396535695,1765042252903,-151.0,0.00016712,2]
[396535696,1765042252914,-151.0,0.00016712,2]
[396535697,1765042252924,-3050.43,0.00016712,2]
[396535698,1765042252934,-151.0,0.00016712,2]
[396535699,1765042252943,-151.0,0.00016712,2]
[396535700,1765042252953,-153.670569,0.00016712,2]
[396535701,1765042252962,-151.0,0.00016712,2]
[396535702,1765042252972,-153.670569,0.00016712,2]
[396535703,1765042252981,-151.0,0.00016712,2]
[396535704,1765042252990,-151.0,0.00016712,2]
[396535705,1765042253000,-2824.46,0.00016712,2]
[396535706,1765042253010,-500.0,0.00016712,2]
[396535707,1765042253020,-151.0,0.00016712,2]
[396535708,1765042253029,-151.0,0.00016712,2]
[396535709,1765042253039,-153.670569,0.00016712,2]
[396535710,1765042253049,-151.0,0.00016712,2]
[396535711,1765042253058,-151.0,0.00016712,2]
[396535712,1765042253068,-153.670569,0.00016712,2]
[396535713,1765042253077,-151.0,0.00016712,2]
[396535714,1765042253087,-554.2290497,0.00016712,2]
[396535715,1765042253097,-3129.05,0.00016712,2]
[396535716,1765042253107,-302.263134,0.00016712,2]
[396535717,1765042253116,-823.46,0.00016712,2]
[396535718,1765042253126,-302.263134,0.00016712,2]
[396535719,1765042253136,-500.0,0.00016712,2]
[396535720,1765042253145,-151.0,0.00016712,2]
[396535721,1765042253155,-500.0,0.00016712,2]
[396535722,1765042253165,-302.263134,0.00016712,2]
[396535723,1765042253175,-302.263134,0.00016712,2]
[396535724,1765042253184,-624.44,0.00016712,2]
[396535725,1765042253194,-302.263134,0.00016712,2]
[396535726,1765042253203,-500.0,0.00016712,2]
[396535727,1765042253213,-302.263134,0.00016712,2]
[396535728,1765042253223,-302.263134,0.00016712,2]
[396535729,1765042253233,-3061.64,0.00016712,2]
[396535730,1765042253243,-2352.14,0.00016712,2]
[396535731,1765042253252,-302.263134,0.00016712,2]
[396535732,1765042253262,-500.0,0.00016712,2]
[396535733,1765042253273,-573.01,0.00016712,2]
[396535734,1765042253282,-2719.95,0.00016712,2]
[396535735,1765042253292,-1649.05,0.00016712,2]
[396535736,1765042253302,-151.0,0.00016712,2]
[396535737,1765042253312,-151.0,0.00016712,2]
[396535738,1765042253322,-837.586815,0.00016712,2]
[396535739,1765042253333,-2831.56,0.00016712,2]
[396535740,1765042253345,-837.586815,0.00016712,2]
[396535741,1765042253357,-3329.48,0.00016712,2]
[396535742,1765042253367,-151.0,0.00016712,2]
[396535743,1765042253376,-151.0,0.00016712,2]
[396535744,1765042253386,-500.93769086,0.00016712,2]
[396535745,1765042253396,-837.586815,0.00016712,2]
[396535746,1765042253405,-837.586815,0.00016712,2]
[396535747,1765042253415,-837.586815,0.00016712,2]
[396535748,1765042253426,-837.586815,0.00016712,2]
[396535749,1765042253436,-500.0,0.00016712,2]
[396535750,1765042253445,-500.0,0.00016712,2]
[396535751,1765042253455,-151.0,0.00016712,2]
[396535752,1765042253464,-151.0,0.00016712,2]
[396535753,1765042253474,-152.788984,0.00016712,2]
[396535754,1765042253483,-837.586815,0.00016712,2]
[396535755,1765042253493,-500.0,0.00016712,2]
[396535756,1765042253503,-837.586815,0.00016712,2]
[396535757,1765042253512,-500.0,0.00016712,2]
[396535758,1765042253522,-500.0,0.00016712,2]
[396535759,1765042253531,-500.0,0.00016712,2]
[396535760,1765042253540,-502.6129268,0.00016712,2]
[396535761,1765042253550,-151.0,0.00016712,2]
[396535762,1765042253559,-151.0,0.00016712,2]
[396535763,1765042253569,-811.49,0.00016712,2]
[396535764,1765042253578,-151.0,0.00016712,2]
[396535765,1765042253589,-3464.16,0.00016712,2]
[396535766,1765042253599,-154.925311,0.00016712,2]
[396535767,1765042253609,-819.24,0.00016712,2]
[396535768,1765042253618,-500.0,0.00016712,2]
[396535769,1765042253628,-1541.65,0.00016712,2]
[396535770,1765042253638,-602.66,0.00016712,2]
[396535771,1765042253648,-500.0,0.00016712,2]
[396535772,1765042253660,-500.0,0.00016712,2]
[396535773,1765042253675,-151.0,0.00016712,2]
[396535774,1765042253684,-159.405013,0.00016712,2]
[396535775,1765042253695,-500.0,0.00016712,2]
[396535776,1765042253705,-500.0,0.00016712,2]
[396535777,1765042253715,-936.41,0.00016712,2]
[396535778,1765042253725,-1502.83,0.00016712,2]
[396535779,1765042253734,-2109.59,0.00016712,2]
[396535780,1765042253744,-500.0,0.00016712,2]
[396535781,1765042253754,-788.82,0.00016712,2]
[396535782,1765042253764,-739.46,0.00016712,2]
[396535783,1765042253779,-500.0,0.00016712,2]
[396535784,1765042253789,-152.811684,0.00016712,2]
[396535785,1765042253798,-2827.11,0.00016712,2]
[396535786,1765042253808,-151.0,0.00016712,2]
[396535787,1765042253817,-500.0,0.00016712,2]
[396535788,1765042253828,-1107.95,0.00016712,2]
[396535789,1765042253837,-151.0,0.00016712,2]
[396535790,1765042253848,-151.0,0.00016712,2]
[396535791,1765042253858,-500.0,0.00016712,2]
[396535792,1765042253868,-1004.86,0.00016712,2]
[396535793,1765042253878,-500.0,0.00016712,2]
[396535794,1765042253887,-500.0,0.00016712,2]
[396535795,1765042253897,-500.0,0.00016712,2]
[396535796,1765042253907,-3306.03,0.00016712,2]
[396535797,1765042253918,-500.0,0.00016712,2]
[396535798,1765042253928,-500.0,0.00016712,2]
[396535799,1765042253938,-579.77,0.00016712,2]
[396535800,1765042253948,-151.0,0.00016712,2]
[396535801,1765042253958,-151.0,0.00016712,2]
[396535802,1765042253968,-500.0,0.00016712,2]
[396535803,1765042253977,-500.0,0.00016712,2]
[396535804,1765042253987,-1706.53,0.00016712,2]
[396535805,1765042253997,-3237.52,0.00016712,2]
[396535806,1765042254006,-151.0,0.00016712,2]
[396535807,1765042254016,-540.07351419,0.00016712,2]
[396535808,1765042254026,-500.0,0.00016712,2]
[396535809,1765042254035,-3007.92,0.00016712,2]
[396535810,1765042254045,-500.0,0.00016712,2]
[396535811,1765042254055,-653.99,0.00016712,2]
[396535812,1765042254065,-500.0,0.00016712,2]
[396535813,1765042254075,-500.0,0.00016712,2]
[396535814,1765042254085,-438.60099236,0.00016712,2]
[396535815,1765042254094,-540.39083481,0.00016712,2]
[396535816,1765042254103,-2416.16,0.00016712,2]
[396535817,1765042254113,-160.288808,0.00016712,2]
[396535818,1765042254123,-1294.48,0.00016712,2]
[396535819,1765042254132,-151.0,0.00016712,2]
[396535820,1765042254142,-500.0,0.00016712,2]
[396535821,1765042254151,-151.0,0.00016712,2]
[396535822,1765042254161,-500.0,0.00016712,2]
[396535823,1765042254171,-151.0,0.00016712,2]
[396535824,1765042254180,-500.0,0.00016712,2]
[396535825,1765042254190,-151.0,0.00016712,2]
[396535826,1765042254200,-1256.71,0.00016712,2]
[396535827,1765042254209,-151.0,0.00016712,2]
[396535828,1765042254219,-500.0,0.00016712,2]
[396535829,1765042254228,-151.0,0.00016712,2]
[396535830,1765042254238,-540.45,0.00016712,2]
[396535831,1765042254247,-500.0,0.00016712,2]
[396535832,1765042254258,-771.37,0.00016712,2]
[396535833,1765042254269,-500.0,0.00016712,2]
[396535834,1765042254278,-151.0,0.00016712,2]
[396535835,1765042254287,-547.54,0.00016712,2]
[396535836,1765042254296,-151.0,0.00016712,2]
[396535837,1765042254305,-500.0,0.00016712,2]
[396535838,1765042254315,-500.0,0.00016712,2]
[396535839,1765042254325,-151.0,0.00016712,2]
[396535840,1765042254337,-151.0,0.00016712,2]
[396535841,1765042254347,-957.83,0.00016712,2]
[396535842,1765042254356,-500.0,0.00016712,2]
[396535843,1765042254366,-2347.68,0.00016712,2]
[396535844,1765042254377,-4608.77,0.00016712,2]
[396535845,1765042254389,-500.0,0.00016712,2]
[396535846,1765042254399,-500.0,0.00016712,2]
[396535847,1765042254409,-682.38,0.00016712,2]
[396535848,1765042254419,-500.0,0.00016712,2]
[396535849,1765042254428,-500.0,0.00016712,2]
[396535850,1765042254437,-423.41,0.00016718,2]
[396535851,1765042254446,-307.06,0.00016735,2]
[396535852,1765042254456,-1588.85310365,0.00016795,2]
[396535853,1765042254465,-514.05399617,0.00016799,2]
[396535854,1765042254475,-2234.35,0.00016799,2]
[396535855,1765042254484,-81560.99089784,0.000168,2]
[396535856,1765042254493,-151.0,0.000168,2]
[396535857,1765042254502,-151.0,0.000168,2]
[396535858,1765042254511,-151.0,0.000168,2]
[396535859,1765042254522,-276.055738,0.000168,2]
[396535860,1765042254531,-151.0,0.000168,2]
[396535861,1765042254540,-500.0,0.00016849,2]
[396535862,1765042254550,-674.46580313,0.00016858,2]
[396535863,1765042254558,-165.24586606,0.0001688,2]
[396535864,1765042254568,-219.21129071,0.00016886,2]
[396535865,1765042254577,-163.0,0.000169,2]
[396535866,1765042254586,-164.9,0.000169,2]
[396535867,1765042254596,-10000.0,0.000169,2]
[396535868,1765042254605,-854.90475048,0.000169,2]
[396535869,1765042254615,-969.06337,0.000169,2]
[396535870,1765042254624,-171.25866366,0.000169,2]
[396535871,1765042254634,-212.18028746,0.000169,2]
[396535872,1765042254644,-2601.26565396,0.000169,2]
[396535873,1765042254654,-222.56764231,0.00016901,2]
[396535874,1765042254662,-1588.85310365,0.00016947,2]
[396535875,1765042254672,-500.0,0.00016972,2]
[396535876,1765042254681,-500.0,0.00016972,2]
[396535877,1765042254691,-151.0,0.00016972,2]
[396535878,1765042254701,-151.0,0.00016972,2]
[396535879,1765042254710,-162.48524,0.00016972,2]
[396535880,1765042254720,-151.0,0.00016972,2]
[396535881,1765042254730,-151.0,0.00016972,2]
[396535882,1765042254740,-151.0,0.00016972,2]
[396535883,1765042254749,-151.0,0.00016972,2]
[396535884,1765042254760,-413.492222,0.00016972,2]
[396535885,1765042254773,-151.0,0.00016972,2]
[396535886,1765042254788,-413.492222,0.00016972,2]
[396535887,1765042254801,-151.0,0.00016972,2]
[396535888,1765042254812,-413.492222,0.00016972,2]
[396535889,1765042254825,-215.750823,0.00016972,2]
[396535890,1765042254838,-186.616004,0.00016972,2]
[396535891,1765042254851,-413.492222,0.00016972,2]
[396535892,1765042254864,-293.165446,0.00016972,2]
[396535893,1765042254877,-293.165446,0.00016972,2]
[396535894,1765042254889,-151.0,0.00016972,2]
[396535895,1765042254901,-293.165446,0.00016972,2]
[396535896,1765042254912,-151.0,0.00016972,2]
[396535897,1765042254926,-151.0,0.00016972,2]
[396535898,1765042254940,-293.165446,0.00016972,2]
[396535899,1765042254953,-151.0,0.00016972,2]
[396535900,1765042254965,-500.0,0.00016973,2]
[396535901,1765042254979,-500.0,0.00016973,2]
[396535903,1765042254993,-500.0,0.00016973,2]
[396535904,1765042255006,-218.05857181,0.00016973,2]
[396535905,1765042255019,-500.0,0.00016973,2]
[396535906,1765042255032,-500.0,0.00016973,2]
[396535907,1765042255046,-500.0,0.00016973,2]
[396535908,1765042255059,-500.0,0.00016973,2]
[396535909,1765042255072,-500.0,0.00016973,2]
[396535910,1765042255084,-500.0,0.00016973,2]
[396535911,1765042255097,-500.0,0.00016973,2]
[396535912,1765042255111,-500.0,0.00016973,2]
[396535913,1765042255122,-500.0,0.00016973,2]
[396535914,1765042255134,-500.0,0.00016973,2]
[396535915,1765042255146,-500.0,0.00016973,2]
[396535916,1765042255156,-500.0,0.00016973,2]
[396535917,1765042255168,-500.0,0.00016973,2]
[396535918,1765042255180,-500.0,0.00016973,2]
[396535919,1765042255195,-500.0,0.00016973,2]
[396535920,1765042255206,-500.0,0.00016973,2]
[396535921,1765042255216,-500.0,0.00016973,2]
[396535922,1765042255227,-161.88438716,0.00016973,2]
[396535923,1765042255239,-500.0,0.00016973,2]
[396535924,1765042255253,-500.0,0.00016973,2]
[396535925,1765042255265,-500.0,0.00016973,2]
[396535926,1765042255275,-500.0,0.00016973,2]
[396535927,1765042255286,-500.0,0.00016973,2]
[396535928,1765042255298,-500.0,0.00016973,2]
[396535929,1765042255309,-500.0,0.00016973,2]
[396535930,1765042255320,-500.0,0.00016973,2]
[396535931,1765042255332,-500.0,0.00016973,2]
[396535932,1765042255344,-156.18843256,0.00016973,2]
[396535933,1765042255356,-500.0,0.00016973,2]
[396535934,1765042255367,-500.0,0.00016973,2]
[396535935,1765042255378,-500.0,0.00016973,2]
[396535936,1765042255390,-500.0,0.00016973,2]
[396535937,1765042255402,-500.0,0.00016973,2]
[396535938,1765042255414,-500.0,0.00016973,2]
[396535939,1765042255425,-500.0,0.00016973,2]
[396535940,1765042255438,-500.0,0.00016973,2]
[396535941,1765042255450,-500.0,0.00016973,2]
[396535942,1765042255462,-500.0,0.00016973,2]
[396535943,1765042255474,-196.76119464,0.00016973,2]
[396535944,1765042255486,-500.0,0.00016973,2]
[396535945,1765042255497,-500.0,0.00016973,2]
[396535946,1765042255509,-500.0,0.00016973,2]
[396535947,1765042255519,-500.0,0.00016973,2]
[396535948,1765042255531,-500.0,0.00016973,2]
[396535949,1765042255542,-500.0,0.00016973,2]
[396535950,1765042255553,-500.0,0.00016973,2]
[396535951,1765042255563,-306.35770823,0.00016973,2]
[396535952,1765042255574,-500.0,0.00016973,2]
[396535953,1765042255585,-151.0,0.00016973,2]
[396535954,1765042255597,-151.0,0.00016973,2]
[396535955,1765042255609,-151.0,0.00016973,2]
[396535956,1765042255621,-151.0,0.00016973,2]
[396535957,1765042255632,-151.0,0.00016973,2]
[396535958,1765042255644,-151.0,0.00016973,2]
[396535959,1765042255656,-151.0,0.00016973,2]
[396535960,1765042255669,-151.0,0.00016973,2]
[396535961,1765042255680,-233.836463,0.00016973,2]
[396535962,1765042255692,-151.0,0.00016973,2]
[396535963,1765042255703,-151.0,0.00016973,2]
[396535964,1765042255715,-151.0,0.00016973,2]
[396535965,1765042255727,-151.0,0.00016973,2]
[396535966,1765042255738,-151.0,0.00016973,2]
[396535967,1765042255750,-151.0,0.00016973,2]
[396535968,1765042255762,-151.0,0.00016973,2]
[396535969,1765042255773,-151.0,0.00016973,2]
[396535970,1765042255784,-151.0,0.00016973,2]
[396535971,1765042255796,-151.0,0.00016973,2]
[396535972,1765042255807,-151.0,0.00016973,2]
[396535973,1765042255818,-170.807429,0.00016973,2]
[396535974,1765042255829,-170.807429,0.00016973,2]
[396535975,1765042255840,-151.0,0.00016973,2]
[396535976,1765042255851,-170.807429,0.00016973,2]
[396535977,1765042255863,-151.0,0.00016973,2]
[396535978,1765042255880,-170.807429,0.00016973,2]
[396535979,1765042255892,-151.0,0.00016973,2]
[396535980,1765042255903,-284.163052,0.00016973,2]
[396535981,1765042255915,-284.163052,0.00016973,2]
[396535982,1765042255926,-284.163052,0.00016973,2]
[396535983,1765042255938,-284.163052,0.00016973,2]
[396535984,1765042255950,-151.0,0.00016973,2]
[396535985,1765042255961,-151.0,0.00016973,2]
[396535986,1765042255972,-151.0,0.00016973,2]
[396535987,1765042255983,-151.0,0.00016973,2]
[396535988,1765042255996,-151.0,0.00016973,2]
[396535989,1765042256007,-151.0,0.00016973,2]
[396535990,1765042256018,-151.0,0.00016973,2]
[396535991,1765042256029,-151.0,0.00016973,2]
[396535992,1765042256041,-160.297792,0.00016973,2]
[396535993,1765042256052,-151.0,0.00016973,2]
[396535994,1765042256063,-151.0,0.00016973,2]
[396535995,1765042256075,-151.0,0.00016973,2]
[396535996,1765042256087,-151.0,0.00016973,2]
[396535997,1765042256098,-153.670569,0.00016973,2]
[396535998,1765042256109,-151.0,0.00016973,2]
[396535999,1765042256120,-151.0,0.00016973,2]
[396536000,1765042256131,-153.670569,0.00016973,2]
[396536001,1765042256143,-151.0,0.00016973,2]
[396536002,1765042256154,-151.0,0.00016973,2]
[396536003,1765042256165,-153.670569,0.00016973,2]
[396536004,1765042256176,-151.0,0.00016973,2]
[396536005,1765042256188,-237.469756,0.00016973,2]
[396536006,1765042256201,-151.0,0.00016973,2]
[396536007,1765042256211,-153.670569,0.00016973,2]
[396536008,1765042256226,-151.0,0.00016973,2]
[396536009,1765042256237,-302.263134,0.00016973,2]
[396536010,1765042256249,-302.263134,0.00016973,2]
[396536011,1765042256259,-302.263134,0.00016973,2]
[396536012,1765042256271,-302.263134,0.00016973,2]
[396536013,1765042256283,-151.0,0.00016973,2]
[396536014,1765042256295,-837.586815,0.00016973,2]
[396536015,1765042256306,-837.586815,0.00016973,2]
[396536016,1765042256317,-151.0,0.00016973,2]
[396536017,1765042256331,-837.586815,0.00016973,2]
[396536018,1765042256343,-151.0,0.00016973,2]
[396536019,1765042256354,-837.586815,0.00016973,2]
[396536020,1765042256366,-151.0,0.00016973,2]
[396536021,1765042256379,-151.0,0.00016973,2]
[396536022,1765042256392,-151.0,0.00016973,2]
[396536023,1765042256405,-2234.35,0.00016985,2]
[396536024,1765042256419,-2234.35,0.00016985,2]
[396536025,1765042256431,-500.0,0.00016986,2]
[396536026,1765042256443,-2447.76,0.00016986,2]
[396536027,1765042256454,-532.09821768,0.00016986,2]
[396536028,1765042256466,-772.85,0.00016986,2]
[396536029,1765042256477,-599.18603422,0.00016986,2]
[396536030,1765042256490,-500.0,0.00016986,2]
[396536031,1765042256501,-500.0,0.00016986,2]
[396536032,1765042256513,-2794.37,0.00016986,2]
[396536033,1765042256524,-500.0,0.00016986,2]
[396536034,1765042256536,-500.0,0.00016986,2]
[396536035,1765042256547,-2873.56,0.00016986,2]
[396536036,1765042256559,-507.962144,0.00016986,2]
[396536037,1765042256570,-2645.83,0.00016986,2]
[396536038,1765042256582,-525.17,0.00016986,2]
[396536039,1765042256594,-500.0,0.00016986,2]
[396536040,1765042256605,-500.0,0.00016986,2]
[396536041,1765042256618,-500.0,0.00016986,2]
[396536042,1765042256629,-759.11,0.00016986,2]
[396536043,1765042256641,-500.0,0.00016986,2]
[396536044,1765042256652,-1125.85,0.00016986,2]
[396536045,1765042256664,-553.81,0.00016986,2]
[396536046,1765042256676,-500.0,0.00016986,2]
[396536047,1765042256688,-500.0,0.00016986,2]
[396536048,1765042256701,-638.54,0.00016986,2]
[396536049,1765042256712,-573.69,0.00016986,2]
[396536050,1765042256724,-500.0,0.00016986,2]
[396536051,1765042256735,-1286.02,0.00016986,2]
[396536052,1765042256747,-500.0,0.00016986,2]
[396536053,1765042256759,-500.0,0.00016986,2]
[396536054,1765042256771,-500.0,0.00016986,2]
[396536055,1765042256783,-500.0,0.00016986,2]
[396536056,1765042256795,-500.0,0.00016986,2]
[396536057,1765042256806,-500.0,0.00016986,2]
[396536058,1765042256817,-500.0,0.00016986,2]
[396536059,1765042256828,-500.0,0.00016986,2]
[396536060,1765042256840,-500.0,0.00016986,2]
[396536061,1765042256851,-591.49,0.00016986,2]
[396536062,1765042256863,-500.0,0.00016986,2]
[396536063,1765042256873,-500.0,0.00016986,2]
[396536064,1765042256885,-500.0,0.00016986,2]
[396536065,1765042256896,-500.0,0.00016986,2]
[396536066,1765042256908,-500.0,0.00016986,2]
[396536067,1765042256921,-500.0,0.00016986,2]
[396536068,1765042256933,-500.0,0.00016986,2]
[396536069,1765042256944,-500.0,0.00016986,2]
[396536070,1765042256956,-500.0,0.00016986,2]
[396536071,1765042256968,-2693.27,0.00016986,2]
[396536072,1765042256979,-534.31179082,0.00016986,2]
[396536073,1765042256991,-500.0,0.00016986,2]
[396536074,1765042257002,-500.0,0.00016986,2]
[396536075,1765042257013,-500.0,0.00016986,2]
[396536076,1765042257024,-3129.31,0.00016986,2]
[396536077,1765042257036,-4288.6,0.00016986,2]
[396536078,1765042257048,-1041.08,0.00016986,2]
[396536079,1765042257059,-514.82,0.00016986,2]
[396536080,1765042257071,-500.0,0.00016986,2]